fUSD/lending_fUSD_20260118
["ID","MTS","AMOUNT","RATE_DAILY","PERIOD"]
[402622435,1768727455139,-500.0,0.00017534,2]
[402622436,1768727455151,-500.0,0.00017534,2]
[402622437,1768727455160,-500.0,0.00017534,2]
[402622438,1768727455169,-500.0,0.00017534,2]
[402622439,1768727455179,-607.63,0.00017534,2]
[402622440,1768727455188,-500.0,0.00017534,2]
[402622441,1768727455198,-539.77,0.00017534,2]
[402622442,1768727455208,-500.0,0.00017534,2]
[402622443,1768727455218,-500.0,0.00017534,2]
[402622444,1768727455227,-500.0,0.00017534,2]
[402622445,1768727455237,-500.0,0.00017534,2]
[402622446,1768727455247,-500.0,0.00017534,2]
[402622447,1768727455256,-500.0,0.00017534,2]
[402622448,1768727455267,-500.0,0.00017534,2]
[402622449,1768727455276,-500.0,0.00017534,2]
[402622450,1768727455285,-500.0,0.00017534,2]
[402622451,1768727455295,-500.0,0.00017534,2]
[402622452,1768727455305,-500.0,0.00017534,2]
[402622453,1768727455315,-500.0,0.00017534,2]
[402622454,1768727455325,-500.0,0.00017534,2]
[402622455,1768727455334,-500.0,0.00017534,2]
[402622456,1768727455344,-500.0,0.00017534,2]
[402622457,1768727455353,-500.0,0.00017534,2]
[402622458,1768727455363,-500.0,0.00017534,2]
[402622459,1768727455372,-349.41839706,0.00017534,2]
[402622460,1768727455381,-500.0,0.00017534,2]
[402622461,1768727455394,-500.0,0.00017534,2]
[402622462,1768727455403,-500.0,0.00017534,2]
[402622463,1768727455413,-500.0,0.00017534,2]
[402622464,1768727455422,-500.0,0.00017534,2]
[402622465,1768727455432,-500.0,0.00017534,2]
[402622466,1768727455443,-500.0,0.00017534,2]
[402622467,1768727455453,-202.77767559,0.00017534,2]
[402622468,1768727455463,-3792.33,0.00017534,2]
[402622469,1768727455475,-622.35,0.00017534,2]
[402622470,1768727455484,-500.0,0.00017534,2]
[402622471,1768727455494,-500.0,0.00017534,2]
[402622472,1768727455504,-500.0,0.00017534,2]
[402622473,1768727455513,-500.0,0.00017534,2]
[402622474,1768727455523,-500.0,0.00017534,2]
[402622475,1768727455532,-500.0,0.00017534,2]
[402622476,1768727455543,-500.0,0.00017534,2]
[402622477,1768727455553,-500.0,0.00017534,2]
[402622478,1768727455563,-500.0,0.00017534,2]
[402622479,1768727455572,-500.0,0.00017534,2]
[402622480,1768727455582,-500.0,0.00017534,2]
[402622481,1768727455596,-340.69354695,0.00017534,2]
[402622482,1768727455606,-500.0,0.00017534,2]
[402622483,1768727455615,-500.0,0.00017534,2]
[402622484,1768727455625,-500.0,0.00017534,2]
[402622485,1768727455636,-500.0,0.00017534,2]
[402622486,1768727455646,-500.0,0.00017534,2]
[402622487,1768727455656,-500.0,0.00017534,2]
[402622488,1768727455665,-500.0,0.00017534,2]
[402622489,1768727455675,-500.0,0.00017534,2]
[402622490,1768727455684,-500.0,0.00017534,2]
[402622491,1768727455693,-500.0,0.00017534,2]
[402622492,1768727455702,-500.0,0.00017534,2]
[402622493,1768727455711,-500.0,0.00017534,2]
[402622494,1768727455721,-500.0,0.00017534,2]
[402622495,1768727455730,-500.0,0.00017534,2]
[402622496,1768727455742,-500.0,0.00017534,2]
[402622497,1768727455752,-500.0,0.00017534,2]
[402622498,1768727455761,-500.0,0.00017534,2]
[402622499,1768727455771,-500.0,0.00017534,2]
[402622500,1768727455780,-500.0,0.00017534,2]
[402622501,1768727455789,-500.0,0.00017534,2]
[402622502,1768727455799,-500.0,0.00017534,2]
[402622503,1768727455808,-560.23,0.00017534,2]
[402622504,1768727455817,-500.0,0.00017534,2]
[402622505,1768727455826,-711.09,0.00017534,2]
[402622506,1768727455836,-500.0,0.00017534,2]
[402622507,1768727455845,-531.52249639,0.00017534,2]
[402622508,1768727455855,-500.0,0.00017534,2]
[402622509,1768727455864,-500.0,0.00017534,2]
[402622510,1768727455874,-265.14582479,0.00017534,2]
[402622511,1768727455883,-500.0,0.00017534,2]
[402622512,1768727455892,-500.0,0.00017534,2]
[402622513,1768727455901,-501.26,0.00017534,2]
[402622514,1768727455910,-1762.21,0.00017534,2]
[402622515,1768727455920,-500.0,0.00017534,2]
[402622516,1768727455929,-398.95345238,0.00017534,2]
[402622517,1768727455938,-500.0,0.00017534,2]
[402622518,1768727455948,-500.0,0.00017534,2]
[402622519,1768727455957,-569.15,0.00017534,2]
[402622520,1768727455966,-500.0,0.00017534,2]
[402622521,1768727455976,-500.0,0.00017534,2]
[402622522,1768727455985,-500.0,0.00017534,2]
[402622523,1768727455994,-500.0,0.00017534,2]
[402622524,1768727456003,-500.0,0.00017534,2]
[402622525,1768727456013,-500.0,0.00017534,2]
[402622526,1768727456022,-500.0,0.00017534,2]
[402622527,1768727456031,-547.4,0.00017534,2]
[402622528,1768727456040,-500.0,0.00017534,2]
[402622529,1768727456050,-500.0,0.00017534,2]
[402622530,1768727456059,-500.0,0.00017534,2]
[402622531,1768727456069,-500.0,0.00017534,2]
[402622532,1768727456383,-500.0,0.00017534,2]
[402622533,1768727456398,-4036.38,0.00017534,2]
[402622534,1768727456408,-500.0,0.00017534,2]
[402622535,1768727456418,-500.0,0.00017534,2]
[402622536,1768727456427,-641.91,0.00017534,2]
[402622537,1768727456439,-229.31631433,0.00017534,2]
[402622538,1768727456449,-500.0,0.00017534,2]
[402622539,1768727456458,-500.0,0.00017534,2]
[402622540,1768727456469,-500.0,0.00017534,2]
[402622541,1768727456479,-500.0,0.00017534,2]
[402622542,1768727456490,-500.0,0.00017534,2]
[402622543,1768727456499,-500.0,0.00017534,2]
[402622544,1768727456510,-500.0,0.00017534,2]
[402622545,1768727456520,-500.0,0.00017534,2]
[402622546,1768727456530,-522.7,0.00017534,2]
[402622547,1768727456540,-500.0,0.00017534,2]
[402622548,1768727456549,-500.0,0.00017534,2]
[402622549,1768727456559,-500.0,0.00017534,2]
[402622550,1768727456570,-500.0,0.00017534,2]
[402622551,1768727456579,-619.58,0.00017534,2]
[402622552,1768727456588,-500.0,0.00017534,2]
[402622553,1768727456597,-500.0,0.00017534,2]
[402622554,1768727456607,-500.0,0.00017534,2]
[402622555,1768727456616,-1400.32,0.00017534,2]
[402622556,1768727456625,-500.0,0.00017534,2]
[402622557,1768727456635,-500.0,0.00017534,2]
[402622558,1768727456643,-500.0,0.00017534,2]
[402622559,1768727456653,-500.0,0.00017534,2]
[402622560,1768727456662,-500.0,0.00017534,2]
[402622561,1768727456671,-500.0,0.00017534,2]
[402622562,1768727456680,-500.0,0.00017534,2]
[402622563,1768727456690,-500.0,0.00017534,2]
[402622564,1768727456699,-500.0,0.00017534,2]
[402622565,1768727456708,-500.0,0.00017534,2]
[402622566,1768727456719,-151.0,0.00017534,2]
[402622567,1768727456728,-151.0,0.00017534,2]
[402622568,1768727456738,-500.0,0.00017534,2]
[402622569,1768727456747,-500.0,0.00017534,2]
[402622570,1768727456756,-500.0,0.00017534,2]
[402622571,1768727456766,-500.0,0.00017534,2]
[402622572,1768727456775,-500.0,0.00017534,2]
[402622573,1768727456784,-500.0,0.00017534,2]
[402622574,1768727456793,-500.0,0.00017534,2]
[402622575,1768727456802,-500.0,0.00017534,2]
[402622576,1768727456811,-500.0,0.00017534,2]
[402622577,1768727456820,-500.0,0.00017534,2]
[402622578,1768727456830,-172.98236987,0.00017534,2]
[402622579,1768727457239,-327.01763013,0.00017534,2]
[402622580,1768727457249,-154.18745316,0.00017534,2]
[402622581,1768727457285,-345.81254684,0.00017534,2]
[402622582,1768727457295,-500.0,0.00017534,2]
[402622583,1768727457305,-500.0,0.00017534,2]
[402622584,1768727457315,-196.98283596,0.00017534,2]
[402622585,1768727457342,-215.02606409,0.00017534,2]
[402622586,1768727457351,-500.0,0.00017534,2]
[402622587,1768727457362,-500.0,0.00017534,2]
[402622588,1768727457371,-500.0,0.00017534,2]
[402622589,1768727457380,-509.59,0.00017534,2]
[402622590,1768727457392,-194.811356,0.00017534,2]
[402622591,1768727457403,-500.15,0.00017534,2]
[402622592,1768727457413,-521.30236932,0.00017534,2]
[402622593,1768727457424,-334.68438406,0.00017534,2]
[402622594,1768727457435,-514.32,0.00017534,2]
[402622595,1768727457444,-500.0,0.00017534,2]
[402622596,1768727457453,-3191.91,0.00017534,2]
[402622597,1768727457463,-500.0,0.00017534,2]
[402622598,1768727457472,-500.0,0.00017534,2]
[402622599,1768727457482,-500.0,0.00017534,2]
[402622600,1768727457491,-500.0,0.00017534,2]
[402622601,1768727457500,-500.0,0.00017534,2]
[402622602,1768727457509,-500.0,0.00017534,2]
[402622603,1768727457519,-500.0,0.00017534,2]
[402622604,1768727457528,-500.0,0.00017534,2]
[402622605,1768727457537,-500.0,0.00017534,2]
[402622606,1768727457547,-504.78,0.00017534,2]
[402622607,1768727457559,-500.0,0.00017534,2]
[402622608,1768727457569,-500.0,0.00017534,2]
[402622609,1768727457579,-500.0,0.00017534,2]
[402622610,1768727457588,-591.12,0.00017534,2]
[402622611,1768727457597,-559.45644534,0.00017534,2]
[402622612,1768727457607,-500.0,0.00017534,2]
[402622613,1768727457617,-500.0,0.00017534,2]
[402622614,1768727457626,-500.0,0.00017534,2]
[402622615,1768727457636,-500.0,0.00017534,2]
[402622616,1768727457645,-500.0,0.00017534,2]
[402622617,1768727457654,-500.0,0.00017534,2]
[402622618,1768727457664,-500.0,0.00017534,2]
[402622619,1768727457673,-500.0,0.00017534,2]
[402622620,1768727457684,-500.0,0.00017534,2]
[402622621,1768727457694,-600.0,0.00017534,2]
[402622622,1768727457704,-1000.0,0.00017534,2]
[402622623,1768727457715,-557.7,0.00017534,2]
[402622624,1768727457728,-171.83,0.00017534,2]
[402622625,1768727457738,-1500.0,0.00017568,2]
[402622626,1768727457749,-610.34674443,0.00017568,2]
[402622627,1768727457758,-1500.0,0.00017568,2]
[402622628,1768727457768,-1500.0,0.00017568,2]
[402622629,1768727457778,-1500.0,0.00017568,2]
[402622630,1768727457788,-1500.0,0.00017568,2]
[402622631,1768727457798,-889.34446489,0.00017568,2]
[402622632,1768727457807,-1504.59269265,0.00017568,2]
[402622633,1768727457818,-1500.0,0.00017568,2]
[402622634,1768727457827,-1500.0,0.00017568,2]
[402622635,1768727457837,-1500.0,0.00017568,2]
[402622636,1768727457846,-1500.0,0.00017568,2]
[402622637,1768727457855,-662.44827329,0.00017568,2]
[402622638,1768727457864,-1500.0,0.00017568,2]
[402622639,1768727457873,-1500.0,0.00017568,2]
[402622640,1768727457883,-1473.24491316,0.00017568,2]
[402622641,1768727457893,-1500.0,0.00017568,2]
[402622642,1768727457903,-1500.0,0.00017568,2]
[402622643,1768727457914,-897.99987744,0.00017568,2]
[402622644,1768727457927,-1505.40793418,0.00017568,2]
[402622645,1768727457938,-1499.90476026,0.00017568,2]
[402622646,1768727457949,-499.0,0.00017577,2]
[402622647,1768727457968,-151.0,0.00017587,2]
[402622648,1768727457979,-499.0,0.00017614,2]
[402622649,1768727457988,-200.0,0.00017625,2]
[402622650,1768727457997,-187.10203342,0.00017638,2]
[402622651,1768727458008,-5674.44350894,0.0001764,2]
[402622652,1768727458017,-85290.52508278,0.00017648,2]
[402622653,1768727458062,-3769.0567722,0.00017648,2]
[402622654,1768727458478,-598.34407291,0.00016438,2]
[402622655,1768727458498,-1368.46268212,0.00016438,2]
[402622656,1768727458698,-73.92058318,0.00016438,2]
[402622657,1768727458772,-701.72669579,0.00016438,2]
[402622658,1768727458788,-38.45528301,0.00016438,2]
[402622659,1768727458798,-566.0,0.00016935,2]
[402622660,1768727458807,-1183.59716998,0.00017032,2]
[402622661,1768727458817,-500.0,0.0001726,2]
[402622662,1768727458826,-500.0,0.00017534,2]
[402622663,1768727458835,-11040.26132872,0.00017648,2]
[402622664,1768727458844,-18909.12621819,0.00017648,2]
[402624244,1768728546471,-3449.62,0.00015149,2]
[402624250,1768728608100,-206.0,0.00043154,30]
[402624251,1768728608132,-500.0,0.00043154,120]
[402624252,1768728608168,-500.0,0.00043154,120]
[402624253,1768728608202,-197.55008551,0.00043154,120]
[402624254,1768728608232,-180.0,0.00043154,30]
[402624255,1768728608265,-1000.0,0.00043154,60]
[402624256,1768728608296,-1000.0,0.00043154,60]
[402624257,1768728608325,-1000.0,0.00043154,30]
[402624258,1768728608356,-1000.0,0.00043154,60]
[402624259,1768728608386,-1828.89840378,0.00043154,30]
[402624260,1768728608417,-1266.0,0.00043154,30]
[402624261,1768728608447,-1266.0,0.00043154,120]
[402624262,1768728608477,-2972.17169863,0.00043154,30]
[402624263,1768728608507,-1000.0,0.00043154,60]
[402624264,1768728608537,-1000.0,0.00043154,30]
[402624265,1768728608567,-1000.0,0.00043154,120]
[402624266,1768728608596,-1000.0,0.00043154,30]
[402624267,1768728608863,-1000.0,0.00043154,60]
[402624268,1768728608964,-1000.0,0.00043154,30]
[402624269,1768728608996,-1000.0,0.00043154,60]
[402624270,1768728609027,-1000.0,0.00043154,60]
[402624271,1768728609056,-1000.0,0.00043154,60]
[402624272,1768728609086,-1000.0,0.00043154,60]
[402624273,1768728609115,-565.33,0.00043154,120]
[402624274,1768728609145,-565.33,0.00043154,120]
[402624275,1768728609176,-565.33,0.00043154,120]
[402624276,1768728609206,-565.33,0.00043154,120]
[402624277,1768728609235,-565.33,0.00043154,120]
[402624278,1768728609268,-565.33,0.00043154,120]
[402624279,1768728609297,-565.33,0.00043154,120]
[402624280,1768728609326,-565.33,0.00043154,120]
[402624281,1768728609355,-565.33,0.00043154,120]
[402624282,1768728609382,-565.33,0.00043154,120]
[402624283,1768728609409,-565.33,0.00043154,120]
[402624284,1768728609438,-565.33,0.00043154,120]
[402624285,1768728609467,-565.33,0.00043154,120]
[402624286,1768728609496,-1000.0,0.00043154,30]
[402624287,1768728609523,-565.33,0.00043154,120]
[402624288,1768728609551,-565.33,0.00043154,120]
[402624289,1768728609577,-565.33,0.00043154,120]
[402624290,1768728609604,-565.33,0.00043154,120]
[402624291,1768728609631,-565.33,0.00043154,120]
[402624292,1768728609661,-565.33,0.00043154,120]
[402624293,1768728609691,-565.33,0.00043154,120]
[402624294,1768728609720,-565.33,0.00043154,120]
[402624295,1768728609748,-565.33,0.00043154,120]
[402624296,1768728609776,-565.33,0.00043154,120]
[402624297,1768728609807,-565.54755237,0.00043154,120]
[402624298,1768728609833,-1000.0,0.00043154,30]
[402624299,1768728609861,-1000.0,0.00043154,30]
[402624300,1768728609888,-60364.68845038,0.00043154,60]
[402624301,1768728609917,-930.81230893,0.00043154,120]
[402624302,1768728609946,-1000.0,0.00043154,60]
[402624303,1768728609975,-1000.0,0.00043154,30]
[402624304,1768728610005,-508.43805884,0.00043154,120]
[402624305,1768728610035,-1996.72,0.00043154,120]
[402624306,1768728610064,-1996.72,0.00043154,120]
[402624307,1768728610094,-1996.72,0.00043154,120]
[402624308,1768728610122,-1996.72,0.00043154,120]
[402624309,1768728610152,-1996.72,0.00043154,120]
[402624310,1768728610182,-1996.72,0.00043154,120]
[402624311,1768728610214,-1996.72,0.00043154,120]
[402624312,1768728610244,-1996.72,0.00043154,120]
[402624313,1768728610273,-1996.72,0.00043154,120]
[402624314,1768728610303,-1996.72,0.00043154,120]
[402624315,1768728610331,-1996.72,0.00043154,120]
[402624316,1768728610359,-1996.72,0.00043154,120]
[402624317,1768728610387,-1996.72,0.00043154,120]
[402624318,1768728610416,-1996.72,0.00043154,120]
[402624319,1768728610445,-1996.72,0.00043154,120]
[402624320,1768728610475,-1996.72,0.00043154,120]
[402624321,1768728610504,-1996.72,0.00043154,120]
[402624322,1768728610533,-1996.72,0.00043154,120]
[402624323,1768728610563,-1996.72,0.00043154,120]
[402624324,1768728610591,-1996.72,0.00043154,120]
[402624325,1768728610620,-1996.72,0.00043154,120]
[402624326,1768728610650,-1996.72,0.00043154,120]
[402624327,1768728610679,-1996.72,0.00043154,120]
[402624328,1768728610708,-1996.84943424,0.00043154,120]
[402624329,1768728610736,-1000.0,0.00043154,30]
[402624330,1768728610765,-1000.0,0.00043154,60]
[402624331,1768728610794,-1000.0,0.00043154,30]
[402624332,1768728610826,-194.57207152,0.00043154,30]
[402624333,1768728610854,-500.0,0.00043154,120]
[402624334,1768728610884,-1000.0,0.00043154,30]
[402624335,1768728610916,-1058.39698,0.00043154,60]
[402624336,1768728610948,-1058.39698,0.00043154,60]
[402624337,1768728610980,-1058.39698,0.00043154,60]
[402624338,1768728611011,-1058.39698,0.00043154,60]
[402624339,1768728611042,-1058.39698,0.00043154,60]
[402624340,1768728611072,-200.0,0.00043154,120]
[402624341,1768728611100,-1000.0,0.00043154,120]
[402624342,1768728611129,-1200.0,0.00043154,120]
[402624343,1768728611157,-1000.0,0.00043154,120]
[402624344,1768728611186,-5000.0,0.00043154,30]
[402624345,1768728611214,-425.08778274,0.00043154,120]
[402624346,1768728611243,-441.76398,0.00043154,60]
[402624347,1768728611272,-441.76398,0.00043154,60]
[402624348,1768728611301,-441.76398,0.00043154,60]
[402624349,1768728611329,-441.76398,0.00043154,60]
[402624350,1768728611359,-441.76398,0.00043154,60]
[402624351,1768728611390,-1503.79145842,0.00043154,90]
[402624352,1768728611425,-512.37795271,0.00043154,120]
[402624353,1768728611459,-1749.85998597,0.00043154,120]
[402624354,1768728611494,-2600.71832299,0.00043154,120]
[402624355,1768728611524,-800.85337002,0.00043154,120]
[402624356,1768728611553,-2347.48989676,0.00043154,120]
[402624357,1768728611582,-964.27130482,0.00043154,120]
[402624358,1768728611612,-1127.72475341,0.00043154,120]
[402624359,1768728611641,-1206.1677554,0.00043154,120]
[402624360,1768728611671,-293.05410299,0.00043154,120]
[402624361,1768728611889,-1561.49980199,0.00043154,120]
[402624362,1768728611921,-2267.36028436,0.00043154,120]
[402624363,1768728611952,-501.31142097,0.00043154,120]
[402624364,1768728611982,-767.89509324,0.00043154,120]
[402624365,1768728612011,-161.01845231,0.00043154,30]
[402624366,1768728612041,-1649.02254215,0.00043154,120]
[402624367,1768728612071,-150.0,0.00043154,30]
[402624368,1768728612099,-150.0,0.00043154,30]
[402624369,1768728612127,-1075.194454,0.00043154,120]
[402624370,1768728612155,-170.92390517,0.00043154,30]
[402624371,1768728612184,-781.96503691,0.00043154,120]
[402624372,1768728612212,-3155.50982498,0.00043154,120]
[402624373,1768728612239,-1089.74021712,0.00043154,120]
[402624374,1768728612267,-1880.89207876,0.00043154,120]
[402624375,1768728612295,-602.04553639,0.00043154,120]
[402624376,1768728612322,-1391.09888928,0.00043154,120]
[402624377,1768728612350,-2203.95372775,0.00043154,120]
[402624378,1768728612377,-3605.504084,0.00043154,120]
[402624379,1768728612404,-1372.52309495,0.00043154,120]
[402624380,1768728612433,-1467.33870107,0.00043154,120]
[402624381,1768728612459,-1515.56900731,0.00043154,120]
[402624382,1768728612487,-3295.83471747,0.00043154,120]
[402624383,1768728612514,-4176.48896097,0.00043154,120]
[402624384,1768728612545,-2551.99728492,0.00043154,30]
[402624385,1768728612573,-1405.63037779,0.00043154,120]
[402624386,1768728612600,-1240.85226122,0.00043154,120]
[402624387,1768728612627,-756.0,0.00043154,120]
[402624388,1768728612656,-1067.52610348,0.00043154,120]
[402624389,1768728612685,-518.20611354,0.00043154,120]
[402624390,1768728612715,-833.72764068,0.00043154,120]
[402624391,1768728612745,-1126.34107728,0.00043154,120]
[402624392,1768728612776,-553.07252653,0.00043154,120]
[402624393,1768728612809,-537.56085191,0.00043154,120]
[402624394,1768728612839,-1463.89081632,0.00043154,120]
[402624395,1768728612866,-1026.90663721,0.00043154,120]
[402624396,1768728612896,-2225.90000892,0.00043154,120]
[402624397,1768728612927,-2060.19404207,0.00043154,120]
[402624398,1768728612955,-1476.96714729,0.00043154,120]
[402624399,1768728612983,-1621.7451168,0.00043154,120]
[402624400,1768728613012,-2869.7886566,0.00043154,60]
[402624401,1768728613041,-1427.58828513,0.00043154,120]
[402624402,1768728613072,-934.69527793,0.00043154,120]
[402624403,1768728613107,-1208.33231633,0.00043154,120]
[402624404,1768728613136,-1029.02097052,0.00043154,120]
[402624405,1768728613166,-500.0,0.00043154,120]
[402624406,1768728613197,-791.41287071,0.00043154,120]
[402624407,1768728613227,-1432.07332729,0.00043154,120]
[402624408,1768728613256,-658.0,0.00043154,120]
[402624409,1768728613284,-1317.74968725,0.00043154,30]
[402624410,1768728613312,-167.77468895,0.00043154,120]
[402624411,1768728613340,-1803.53640733,0.00043154,120]
[402624412,1768728613368,-1734.91182079,0.00043154,120]
[402624413,1768728613396,-500.0,0.00043154,120]
[402624414,1768728613426,-300.0,0.00043154,60]
[402624415,1768728613454,-200.0,0.00043154,30]
[402624416,1768728613483,-5156.9123349,0.00043154,120]
[402624417,1768728613510,-407.0,0.00043154,120]
[402624418,1768728613545,-200.0,0.00043154,30]
[402624419,1768728613573,-200.0,0.00043154,120]
[402624420,1768728613602,-138676.77537259,0.00043154,30]
[402624421,1768728613631,-2126.0,0.00043154,120]
[402624422,1768728613660,-1367.02,0.00043154,30]
[402624423,1768728613687,-620.0,0.00043154,120]
[402624424,1768728613716,-513412.03277207,0.00043154,30]
[402624425,1768728613746,-180.07806275,0.00043154,31]
[402624426,1768728613776,-300.0,0.00043154,30]
[402624427,1768728613807,-1686.1486598,0.00043154,120]
[402624428,1768728613837,-500.0,0.00043154,120]
[402624429,1768728613867,-500.0,0.00043154,120]
[402624430,1768728613897,-500.0,0.00043154,120]
[402624431,1768728613928,-130497.58652066,0.00043154,120]
[402624432,1768728613959,-180.0,0.00043154,30]
[402624433,1768728613990,-269.0,0.00043154,30]
[402624434,1768728614025,-269.0,0.00043154,120]
[402624435,1768728614056,-420.0,0.00043154,30]
[402624436,1768728614088,-1087.07414716,0.00043154,30]
[402624437,1768728614118,-420.0,0.00043154,120]
[402624438,1768728614149,-419.0,0.00043154,30]
[402624439,1768728614180,-419.0,0.00043154,120]
[402624440,1768728614210,-200.0,0.00043154,120]
[402624441,1768728614240,-200.0,0.00043154,120]
[402624442,1768728614266,-200.0,0.00043154,120]
[402624443,1768728614295,-200.0,0.00043154,120]
[402624444,1768728614325,-201.63235616,0.00043154,120]
[402624445,1768728614353,-500.0,0.00043154,120]
[402624446,1768728614382,-500.0,0.00043154,120]
[402624447,1768728614409,-500.0,0.00043154,120]
[402624448,1768728614439,-500.0,0.00043154,120]
[402624449,1768728614470,-500.0,0.00043154,120]
[402624450,1768728614501,-500.0,0.00043154,120]
[402624451,1768728614531,-500.0,0.00043154,120]
[402624452,1768728614560,-500.0,0.00043154,120]
[402624453,1768728614588,-500.0,0.00043154,120]
[402624454,1768728614618,-500.0,0.00043154,120]
[402624455,1768728614646,-500.0,0.00043154,120]
[402624456,1768728614872,-500.0,0.00043154,120]
[402624457,1768728614905,-500.0,0.00043154,120]
[402624458,1768728614936,-500.0,0.00043154,120]
[402624459,1768728614968,-500.0,0.00043154,120]
[402624460,1768728614999,-500.0,0.00043154,120]
[402624461,1768728615032,-500.0,0.00043154,120]
[402624462,1768728615064,-500.0,0.00043154,120]
[402624463,1768728615094,-500.0,0.00043154,120]
[402624464,1768728615123,-500.0,0.00043154,120]
[402624465,1768728615151,-200.0,0.00043154,120]
[402624466,1768728615178,-200.0,0.00043154,120]
[402624467,1768728615208,-637.22895465,0.00043154,120]
[402624468,1768728615240,-200.0,0.00043154,120]
[402624469,1768728615269,-200.0,0.00043154,120]
[402624470,1768728615299,-200.0,0.00043154,120]
[402624471,1768728615328,-200.0,0.00043154,120]
[402624472,1768728615356,-215.41799887,0.00043154,120]
[402624473,1768728615384,-200.0,0.00043154,120]
[402624474,1768728615412,-200.0,0.00043154,120]
[402624475,1768728615441,-200.0,0.00043154,120]
[402624476,1768728615469,-500.0,0.00043154,120]
[402624477,1768728615497,-500.0,0.00043154,120]
[402624478,1768728615525,-500.0,0.00043154,120]
[402624479,1768728615552,-500.0,0.00043154,120]
[402624480,1768728615581,-464.91667488,0.00043154,120]
[402624481,1768728615612,-500.0,0.00043154,120]
[402624482,1768728615650,-500.0,0.00043154,120]
[402624483,1768728615687,-500.0,0.00043154,120]
[402624484,1768728615720,-500.0,0.00043154,120]
[402624485,1768728615754,-500.0,0.00043154,120]
[402624486,1768728615785,-500.0,0.00043154,120]
[402624487,1768728615816,-500.0,0.00043154,120]
[402624488,1768728615844,-500.0,0.00043154,120]
[402624489,1768728615872,-500.0,0.00043154,120]
[402624490,1768728615900,-500.0,0.00043154,120]
[402624491,1768728615931,-500.0,0.00043154,120]
[402624492,1768728615961,-500.0,0.00043154,120]
[402624493,1768728615990,-450.77458984,0.00043154,120]
[402624494,1768728616020,-500.0,0.00043154,120]
[402624495,1768728616051,-500.0,0.00043154,120]
[402624496,1768728616081,-500.0,0.00043154,120]
[402624497,1768728616110,-198.68721009,0.00043154,120]
[402624498,1768728616138,-542.86487822,0.00043154,30]
[402624499,1768728616168,-2999.999987,0.00043154,120]
[402624500,1768728616197,-405.88403529,0.00043154,30]
[402624501,1768728616225,-931.29672581,0.00043154,30]
[402624502,1768728616254,-1191.06639513,0.00043154,30]
[402624503,1768728616282,-411.73585871,0.00043154,30]
[402624504,1768728616310,-1501.8832277,0.00043154,91]
[402624505,1768728616338,-4684.35717513,0.00043154,120]
[402624506,1768728616366,-1407.80392661,0.00043154,60]
[402624507,1768728616393,-3715.56454862,0.00043154,120]
[402624508,1768728616420,-2152.08561422,0.00043154,30]
[402624509,1768728616449,-1357.68319862,0.00043154,120]
[402624510,1768728616478,-785.71546489,0.00043154,30]
[402624511,1768728616507,-348.38914386,0.00043154,120]
[402624512,1768728616538,-1461.11968077,0.00043154,120]
[402624513,1768728616568,-302.49851645,0.00043154,120]
[402624514,1768728616597,-2002.56685768,0.00043154,120]
[402624515,1768728616625,-2774.31255557,0.00043154,120]
[402624516,1768728616653,-3757.72306617,0.00043154,120]
[402624517,1768728616681,-1019.02274689,0.00043154,120]
[402624518,1768728616709,-1594.70994727,0.00043154,120]